[Event "TOP 12 FEMININ 2022 - Phase 1"]
[Site "MULHOUSE, France"]
[Date "2022.04.07"]
[Round "1.1"]
[White "VEGA GUTTIERREZ  MUL, Sabrina"]
[Black "CRAMLING MON, Pia"]
[Result "1-0"]
[TimeControl "90 min +30 secondes par coup"]
[WhiteElo "2385"]
[BlackElo "2454"]

1. e4 {[%clk 01:30:56]} {[%emt 00:00:03]} c5 {[%clk 01:30:54]} {[%emt
00:00:06]} 2. Nf3 {[%clk 01:31:21]} {[%emt 00:00:04]} e6 {[%clk 01:31:18]}
{[%emt 00:00:07]} 3. d4 {[%clk 01:31:46]} {[%emt 00:00:05]} cxd4 {[%clk
01:31:45]} {[%emt 00:00:03]} 4. Nxd4 {[%clk 01:32:08]} {[%emt 00:00:08]} a6
{[%clk 01:32:12]} {[%emt 00:00:03]} 5. Bd3 {[%clk 01:31:55]} {[%emt 00:00:43]}
Bc5 {[%clk 01:32:13]} {[%emt 00:00:28]} 6. Nb3 {[%clk 01:32:18]} {[%emt
00:00:07]} Ba7 {[%clk 01:32:31]} {[%emt 00:00:13]} 7. Nc3 {[%clk 01:30:12]}
{[%emt 00:02:36]} Nc6 {[%clk 01:32:27]} {[%emt 00:00:34]} 8. Qe2 {[%clk
01:27:30]} {[%emt 00:03:11]} d6 {[%clk 01:25:56]} {[%emt 00:07:01]} 9. Be3
{[%clk 01:25:01]} {[%emt 00:03:01]} Nge7 {[%clk 01:25:25]} {[%emt 00:01:00]} 10.
O-O-O {[%clk 01:22:06]} {[%emt 00:03:25]} b5 {[%clk 01:20:36]} {[%emt
00:05:19]} 11. f4 {[%clk 01:07:00]} {[%emt 00:15:36]} b4 {[%clk 01:15:50]}
{[%emt 00:05:16]} 12. Nb1 {[%clk 00:56:42]} {[%emt 00:10:48]} a5 {[%clk
00:57:03]} {[%emt 00:19:17]} 13. Bb5 {[%clk 00:41:51]} {[%emt 00:15:21]} O-O
{[%clk 00:57:08]} {[%emt 00:00:24]} 14. a4 {[%clk 00:38:13]} {[%emt 00:04:08]}
Qc7 {[%clk 00:53:33]} {[%emt 00:04:05]} 15. g4 {[%clk 00:34:14]} {[%emt
00:04:30]} Bxe3+ {[%clk 00:32:18]} {[%emt 00:21:45]} 16. Qxe3 {[%clk 00:34:38]}
{[%emt 00:00:06]} Na7 {[%clk 00:32:26]} {[%emt 00:00:21]} 17. Nd4 {[%clk
00:30:07]} {[%emt 00:05:01]} Qc5 {[%clk 00:27:50]} {[%emt 00:05:06]} 18. Rhe1
{[%clk 00:29:18]} {[%emt 00:01:20]} Bb7 {[%clk 00:26:42]} {[%emt 00:01:36]} 19.
Bd3 {[%clk 00:26:38]} {[%emt 00:03:12]} e5 {[%clk 00:22:16]} {[%emt 00:04:55]}
20. fxe5 {[%clk 00:21:08]} {[%emt 00:06:01]} dxe5 {[%clk 00:22:25]} {[%emt
00:00:20]} 21. Nb3 {[%clk 00:21:11]} {[%emt 00:00:27]} Qxe3+ {[%clk 00:19:25]}
{[%emt 00:03:30]} 22. Rxe3 {[%clk 00:21:39]} {[%emt 00:00:03]} Bc6 {[%clk
00:19:08]} {[%emt 00:00:46]} 23. Nxa5 {[%clk 00:20:51]} {[%emt 00:01:18]} Bxa4
{[%clk 00:19:32]} {[%emt 00:00:06]} 24. Nc4 {[%clk 00:20:06]} {[%emt 00:01:15]}
Nac6 {[%clk 00:16:14]} {[%emt 00:03:48]} 25. Nb6 {[%clk 00:06:35]} {[%emt
00:14:02]} Ra5 {[%clk 00:16:35]} {[%emt 00:00:07]} 26. b3 {[%clk 00:06:56]}
{[%emt 00:00:11]} Bb5 {[%clk 00:16:59]} {[%emt 00:00:05]} 27. Bxb5 {[%clk
00:05:25]} {[%emt 00:02:03]} Rxb5 {[%clk 00:17:24]} {[%emt 00:00:04]} 28. Nd5
{[%clk 00:05:21]} {[%emt 00:00:33]} Ng6 {[%clk 00:14:41]} {[%emt 00:03:13]} 29.
Nd2 {[%clk 00:04:17]} {[%emt 00:01:34]} Na5 {[%clk 00:09:26]} {[%emt 00:05:45]}
30. Kb2 {[%clk 00:03:13]} {[%emt 00:01:35]} Nf4 {[%clk 00:09:47]} {[%emt
00:00:09]} 31. Nc4 {[%clk 00:03:17]} {[%emt 00:00:26]} Nxc4+ {[%clk 00:09:17]}
{[%emt 00:01:01]} 32. bxc4 {[%clk 00:03:44]} {[%emt 00:00:02]} Rc5 {[%clk
00:09:31]} {[%emt 00:00:15]} 33. Rb3 {[%clk 00:01:26]} {[%emt 00:02:49]} Rxc4
{[%clk 00:08:35]} {[%emt 00:01:25]} 34. Nxb4 {[%clk 00:00:33]} {[%emt
00:01:24]} Rxe4 {[%clk 00:08:26]} {[%emt 00:00:38]} 35. Nc6 {[%clk 00:00:49]}
{[%emt 00:00:15]} Ng6 {[%clk 00:06:23]} {[%emt 00:02:32]} 36. h3 {[%clk
00:00:37]} {[%emt 00:00:43]} Rc4 {[%clk 00:05:13]} {[%emt 00:01:39]} 37. Rd6
{[%clk 00:00:34]} {[%emt 00:00:34]} Rc8 {[%clk 00:04:24]} {[%emt 00:01:17]} 38.
Rb6 {[%clk 00:00:43]} {[%emt 00:00:23]} Kf8 {[%clk 00:03:23]} {[%emt 00:01:30]}
39. Kb3 {[%clk 00:00:52]} {[%emt 00:00:22]} Rc5 {[%clk 00:01:42]} {[%emt
00:02:10]} 40. c4 {[%clk 00:00:47]} {[%emt 00:00:36]} Ne7 {[%clk 00:01:37]}
{[%emt 00:00:34]} 41. Nb8 {[%clk 00:00:31]} {[%emt 00:00:47]} Rxc4 {[%clk
00:01:36]} {[%emt 00:00:30]} 42. Nd7+ {[%clk 00:00:49]} {[%emt 00:00:12]} Kg8
{[%clk 00:00:56]} {[%emt 00:01:10]} 43. Nxe5 {[%clk 00:01:10]} {[%emt
00:00:10]} Rc3+ {[%clk 00:01:11]} {[%emt 00:00:14]} 44. Kb4 {[%clk 00:01:10]}
{[%emt 00:00:31]} Re3 {[%clk 00:01:19]} {[%emt 00:00:19]} 45. Rb5 {[%clk
00:00:31]} {[%emt 00:01:11]} Ng6 {[%clk 00:00:45]} {[%emt 00:01:05]} 46. Nxg6
{[%clk 00:00:31]} {[%emt 00:00:30]} hxg6 {[%clk 00:01:12]} {[%emt 00:00:04]} 47.
Rd7 {[%clk 00:00:35]} {[%emt 00:00:26]} Rxh3 {[%clk 00:01:30]} {[%emt
00:00:11]} 48. Rbb7 {[%clk 00:00:32]} {[%emt 00:00:33]} Rf3 {[%clk 00:01:52]}
{[%emt 00:00:08]} 49. g5 {[%clk 00:00:56]} {[%emt 00:00:07]} Rf4+ {[%clk
00:01:53]} {[%emt 00:00:27]} 50. Kb3 {[%clk 00:01:06]} {[%emt 00:00:21]} Rf5
{[%clk 00:02:06]} {[%emt 00:00:17]} 51. Kb4 {[%clk 00:01:16]} {[%emt 00:00:20]}
Re8 {[%clk 00:01:47]} {[%emt 00:00:49]} 52. Kc4 {[%clk 00:01:36]} {[%emt
00:00:10]} Ra8 {[%clk 00:01:04]} {[%emt 00:01:12]} 53. Kd4 {[%clk 00:01:31]}
{[%emt 00:00:36]} Ra3 {[%clk 00:00:44]} {[%emt 00:00:50]} 54. Rb8+ {[%clk
00:01:30]} {[%emt 00:00:31]} Kh7 {[%clk 00:01:13]} 55. Rdd8 {[%clk 00:01:40]}
{[%emt 00:00:21]} Rf4+ {[%clk 00:00:42]} {[%emt 00:01:01]} 56. Ke5 {[%clk
00:02:02]} {[%emt 00:00:08]} Rf5+ {[%clk 00:01:07]} {[%emt 00:00:06]} 57. Kd4
{[%clk 00:01:21]} {[%emt 00:01:10]} Rf4+ {[%clk 00:01:32]} {[%emt 00:00:05]} 58.
Ke5 {[%clk 00:01:46]} {[%emt 00:00:04]} Rf5+ {[%clk 00:01:58]} {[%emt
00:00:05]} 59. Ke4 {[%clk 00:01:15]} {[%emt 00:01:01]} Ra4+ {[%clk 00:02:04]}
{[%emt 00:00:24]} 60. Kd3 {[%clk 00:01:14]} {[%emt 00:00:31]} Rf3+ {[%clk
00:00:31]} {[%emt 00:02:01]} 1-0

[Event "TOP 12 FEMININ 2022 - Phase 1"]
[Site "MULHOUSE, France"]
[Date "2022.04.07"]
[Round "1.2"]
[White "SKRIPCHENKO MON, Almira"]
[Black "NAVROTESCU  MUL, Andreea"]
[Result "1/2-1/2"]
[TimeControl "90 min +30 secondes par coup"]
[WhiteElo "2395"]
[BlackElo "2275"]

1. e4 {[%clk 01:30:57]} {[%emt 00:00:02]} e6 {[%clk 01:30:56]} {[%emt
00:00:04]} 2. d4 {[%emt 00:01:37]} d5 {[%clk 01:31:04]} {[%emt 00:00:16]} 3.
exd5 {[%clk 01:29:14]} {[%emt 00:01:13]} exd5 {[%clk 01:31:26]} {[%emt
00:00:07]} 4. Nf3 {[%clk 01:29:38]} {[%emt 00:00:06]} c5 {[%clk 01:29:19]}
{[%emt 00:02:38]} 5. Bb5+ {[%clk 01:27:39]} {[%emt 00:02:28]} Nc6 {[%clk
01:29:27]} {[%emt 00:00:22]} 6. O-O {[%clk 01:27:42]} {[%emt 00:00:27]} Bd6
{[%clk 01:25:18]} {[%emt 00:04:39]} 7. c4 {[%clk 01:11:38]} {[%emt 00:16:33]}
a6 {[%clk 01:18:35]} {[%emt 00:07:13]} 8. Ba4 {[%clk 01:01:56]} {[%emt
00:10:13]} Nge7 {[%clk 01:11:55]} {[%emt 00:07:10]} 9. cxd5 {[%clk 00:51:57]}
{[%emt 00:10:29]} Nxd5 {[%clk 01:10:32]} {[%emt 00:01:53]} 10. Bg5 {[%clk
00:44:26]} {[%emt 00:08:01]} f6 {[%clk 01:06:27]} {[%emt 00:04:35]} 11. dxc5
{[%clk 00:39:27]} {[%emt 00:05:29]} Bxc5 {[%clk 01:06:21]} {[%emt 00:00:36]} 12.
Qc2 {[%clk 00:38:16]} {[%emt 00:01:41]} Qb6 {[%clk 01:03:08]} {[%emt 00:03:43]}
13. Rc1 {[%clk 00:25:40]} {[%emt 00:13:06]} Be7 {[%clk 00:38:31]} {[%emt
00:25:07]} 14. Qe4 {[%clk 00:23:54]} {[%emt 00:02:15]} Qb4 {[%clk 00:37:13]}
{[%emt 00:01:49]} 15. Qxd5 {[%clk 00:20:23]} {[%emt 00:04:01]} Qxa4 {[%clk
00:37:28]} {[%emt 00:00:15]} 16. Be3 {[%clk 00:20:29]} {[%emt 00:00:24]} Qb5
{[%clk 00:27:53]} {[%emt 00:10:05]} 17. Qxb5 {[%clk 00:15:57]} {[%emt
00:05:02]} axb5 {[%clk 00:28:22]} {[%emt 00:00:02]} 18. Nc3 {[%clk 00:16:20]}
{[%emt 00:00:06]} Be6 {[%clk 00:24:56]} {[%emt 00:03:56]} 19. Nxb5 {[%clk
00:14:44]} {[%emt 00:02:06]} Rxa2 {[%clk 00:25:19]} {[%emt 00:00:07]} 20. Rxa2
Bxa2 21. Ra1 {[%emt 00:00:03]} Bc4 {[%emt 00:00:02]} 22. Ra8+ {[%emt 00:00:01]}
Nd8 {[%emt 00:00:02]} 23. Ra1 {[%emt 00:00:03]} 1/2-1/2

[Event "TOP 12 FEMININ 2022 - Phase 1"]
[Site "MULHOUSE, France"]
[Date "2022.04.07"]
[Round "1.3"]
[White "HAUSSERNOT  MUL, Cecile"]
[Black "LECONTE  MON, Maria"]
[Result "1-0"]
[TimeControl "90 min +30 secondes par coup"]
[WhiteElo "2108"]
[BlackElo "2240"]

1. e4 {[%clk 01:30:58]} {[%emt 00:00:02]} c6 {[%clk 01:30:53]} {[%emt
00:00:07]} 2. d4 {[%clk 01:31:21]} {[%emt 00:00:07]} d5 {[%clk 01:31:19]}
{[%emt 00:00:05]} 3. e5 {[%clk 01:31:47]} {[%emt 00:00:04]} c5 {[%clk
01:31:44]} {[%emt 00:00:04]} 4. dxc5 {[%clk 01:32:08]} {[%emt 00:00:09]} Nc6
{[%clk 01:32:09]} {[%emt 00:00:05]} 5. Nf3 {[%clk 01:29:33]} {[%emt 00:03:05]}
Bg4 {[%clk 01:32:33]} {[%emt 00:00:06]} 6. c3 {[%clk 01:29:45]} {[%emt
00:00:18]} e6 {[%clk 01:32:53]} {[%emt 00:00:10]} 7. Be3 {[%clk 01:28:34]}
{[%emt 00:01:41]} a6 {[%clk 01:33:14]} {[%emt 00:00:09]} 8. Nbd2 {[%clk
01:11:43]} {[%emt 00:17:21]} Nxe5 {[%clk 01:30:22]} {[%emt 00:03:22]} 9. Be2
{[%clk 01:10:58]} {[%emt 00:01:16]} Bxf3 {[%clk 01:14:37]} {[%emt 00:16:15]} 10.
Nxf3 {[%clk 01:09:43]} {[%emt 00:01:45]} Nxf3+ {[%clk 01:14:54]} {[%emt
00:00:12]} 11. Bxf3 {[%clk 01:10:08]} {[%emt 00:00:05]} Nf6 {[%clk 01:15:03]}
{[%emt 00:00:20]} 12. O-O {[%clk 01:09:44]} {[%emt 00:00:55]} Qc7 {[%clk
01:04:37]} {[%emt 00:10:56]} 13. b4 {[%clk 01:08:24]} {[%emt 00:01:50]} Be7
{[%clk 01:02:58]} {[%emt 00:02:08]} 14. Re1 {[%clk 01:04:27]} {[%emt 00:04:29]}
O-O {[%clk 01:02:52]} {[%emt 00:00:36]} 15. Bd4 {[%clk 01:04:10]} {[%emt
00:00:46]} Rad8 {[%clk 00:56:13]} {[%emt 00:07:09]} 16. a4 {[%clk 01:03:02]}
{[%emt 00:01:38]} Rfe8 {[%clk 00:48:48]} {[%emt 00:07:55]} 17. Be5 {[%clk
01:02:19]} {[%emt 00:01:14]} Qd7 {[%clk 00:33:17]} {[%emt 00:16:01]} 18. Qd4
{[%clk 01:01:30]} {[%emt 00:01:18]} Rc8 {[%clk 00:29:18]} {[%emt 00:04:29]} 19.
a5 {[%clk 01:00:07]} {[%emt 00:01:54]} Red8 {[%clk 00:26:16]} {[%emt 00:03:32]}
20. Rad1 {[%clk 00:52:21]} {[%emt 00:08:16]} Qb5 {[%clk 00:18:42]} {[%emt
00:08:03]} 21. Be2 {[%clk 00:51:08]} {[%emt 00:01:43]} Qc6 {[%clk 00:18:27]}
{[%emt 00:00:45]} 22. Rd3 {[%clk 00:46:13]} {[%emt 00:05:25]} Ne8 {[%clk
00:14:25]} {[%emt 00:04:32]} 23. Rg3 {[%clk 00:35:50]} {[%emt 00:10:53]} f6
{[%clk 00:13:53]} {[%emt 00:01:02]} 24. Bd3 {[%clk 00:35:27]} {[%emt 00:00:53]}
fxe5 {[%clk 00:13:39]} {[%emt 00:00:45]} 25. Qxe5 {[%clk 00:34:54]} {[%emt
00:01:03]} Bf8 {[%clk 00:07:25]} {[%emt 00:06:43]} 26. Ree3 {[%clk 00:32:40]}
{[%emt 00:02:44]} Qd7 {[%clk 00:04:22]} {[%emt 00:03:33]} 27. Ref3 {[%clk
00:32:43]} {[%emt 00:00:27]} Qe7 {[%clk 00:03:45]} {[%emt 00:01:07]} 28. Qh5
{[%clk 00:32:24]} {[%emt 00:00:49]} g6 {[%clk 00:03:24]} {[%emt 00:00:52]} 29.
Rxg6+ {[%clk 00:28:03]} {[%emt 00:04:50]} Kh8 {[%clk 00:02:04]} {[%emt
00:01:50]} 30. Qxh7+ {[%clk 00:25:24]} {[%emt 00:03:09]} 1-0

[Event "TOP 12 FEMININ 2022 - Phase 1"]
[Site "MULHOUSE, France"]
[Date "2022.04.07"]
[Round "1.4"]
[White "DORNBUSCH MON, Tatiana"]
[Black "RICHARD  MUL, Emma"]
[Result "1-0"]
[TimeControl "90 min +30 secondes par coup"]
[WhiteElo "2245"]
[BlackElo "2144"]

1. d4 {[%clk 01:30:45]} {[%emt 00:00:14]} Nf6 {[%clk 01:30:48]} {[%emt
00:00:12]} 2. Bg5 {[%clk 01:29:17]} {[%emt 00:01:57]} e6 {[%clk 01:30:41]}
{[%emt 00:00:37]} 3. e4 {[%clk 01:29:12]} {[%emt 00:00:36]} h6 {[%clk
01:30:55]} {[%emt 00:00:17]} 4. Bxf6 {[%clk 01:29:10]} {[%emt 00:00:31]} Qxf6
{[%clk 01:31:17]} {[%emt 00:00:08]} 5. Nf3 {[%clk 01:29:27]} {[%emt 00:00:13]}
d6 {[%clk 01:30:49]} {[%emt 00:00:58]} 6. Nc3 {[%clk 01:29:03]} {[%emt
00:00:54]} Qe7 {[%clk 01:30:44]} {[%emt 00:00:34]} 7. Bd3 {[%clk 01:27:53]}
{[%emt 00:01:41]} g6 {[%clk 01:30:12]} {[%emt 00:01:02]} 8. O-O {[%clk
01:27:01]} {[%emt 00:01:22]} Bg7 {[%clk 01:30:34]} {[%emt 00:00:09]} 9. e5
{[%clk 01:16:25]} {[%emt 00:11:06]} O-O {[%clk 01:27:04]} {[%emt 00:04:00]} 10.
Qe2 {[%clk 01:09:01]} {[%emt 00:07:53]} d5 {[%clk 01:11:09]} {[%emt 00:16:24]}
11. h4 {[%clk 01:05:29]} {[%emt 00:04:04]} c5 {[%clk 01:05:19]} {[%emt
00:06:19]} 12. dxc5 {[%clk 01:02:23]} {[%emt 00:03:36]} Qxc5 {[%clk 01:04:31]}
{[%emt 00:01:17]} 13. Nb5 {[%clk 00:43:01]} {[%emt 00:19:53]} Nd7 {[%clk
00:50:54]} {[%emt 00:14:07]} 14. c3 {[%clk 00:40:10]} {[%emt 00:03:21]} a6
{[%clk 00:41:05]} {[%emt 00:10:19]} 15. Nbd4 {[%clk 00:40:10]} {[%emt
00:00:30]} Qe7 {[%clk 00:37:38]} {[%emt 00:03:57]} 16. Rae1 {[%clk 00:33:47]}
{[%emt 00:06:53]} Re8 {[%clk 00:29:01]} {[%emt 00:09:07]} 17. Bb1 {[%clk
00:30:37]} {[%emt 00:03:40]} b5 {[%clk 00:27:10]} {[%emt 00:02:21]} 18. h5
{[%clk 00:28:26]} {[%emt 00:02:41]} gxh5 {[%clk 00:22:02]} {[%emt 00:05:38]} 19.
Qd3 {[%clk 00:20:45]} {[%emt 00:08:11]} Nf8 {[%clk 00:13:09]} {[%emt 00:09:23]}
20. Ne2 {[%clk 00:20:11]} {[%emt 00:01:05]} Ng6 {[%clk 00:12:36]} {[%emt
00:01:02]} 21. Ng3 {[%clk 00:20:20]} {[%emt 00:00:21]} h4 {[%clk 00:11:34]}
{[%emt 00:01:32]} 22. Nh5 {[%clk 00:20:07]} {[%emt 00:00:43]} Bb7 {[%clk
00:05:05]} {[%emt 00:06:59]} 23. Qd4 {[%clk 00:19:59]} {[%emt 00:00:38]} Rec8
{[%clk 00:05:14]} {[%emt 00:00:20]} 24. Bd3 {[%clk 00:17:59]} {[%emt 00:02:30]}
Rc4 {[%clk 00:04:18]} {[%emt 00:01:26]} 25. Bxc4 {[%clk 00:12:09]} {[%emt
00:06:20]} dxc4 {[%clk 00:04:43]} {[%emt 00:00:05]} 26. Nf6+ {[%clk 00:11:14]}
{[%emt 00:01:26]} Bxf6 {[%clk 00:04:21]} {[%emt 00:00:52]} 27. exf6 {[%clk
00:11:39]} {[%emt 00:00:05]} Qd8 {[%clk 00:02:41]} {[%emt 00:02:09]} 28. Rd1
{[%clk 00:09:38]} {[%emt 00:02:32]} Qxd4 {[%clk 00:02:47]} {[%emt 00:00:24]} 29.
Nxd4 {[%clk 00:06:28]} {[%emt 00:03:40]} Nf4 {[%emt 00:00:21]} 30. g3 {[%clk
00:06:03]} {[%emt 00:00:53]} Nd5 {[%clk 00:03:01]} {[%emt 00:00:26]} 31. gxh4
{[%clk 00:05:18]} {[%emt 00:01:15]} Nxf6 {[%clk 00:02:39]} {[%emt 00:00:52]} 32.
f3 {[%clk 00:04:05]} {[%emt 00:01:43]} Kh7 {[%clk 00:02:29]} {[%emt 00:00:40]}
33. Kf2 {[%clk 00:04:14]} {[%emt 00:00:22]} Nd5 {[%clk 00:02:21]} {[%emt
00:00:38]} 34. Ne2 {[%clk 00:04:02]} {[%emt 00:00:42]} Kg6 {[%clk 00:02:07]}
{[%emt 00:00:44]} 35. Rg1+ {[%clk 00:03:46]} {[%emt 00:00:45]} Kf6 {[%clk
00:02:32]} {[%emt 00:00:05]} 36. Rg4 {[%clk 00:03:23]} {[%emt 00:00:53]} Ke7
{[%clk 00:01:56]} {[%emt 00:01:07]} 37. Rg7 {[%clk 00:02:40]} {[%emt 00:01:12]}
Nf6 {[%clk 00:01:25]} {[%emt 00:01:02]} 38. Nf4 {[%clk 00:02:17]} {[%emt
00:00:53]} e5 {[%clk 00:00:39]} {[%emt 00:01:16]} 39. Re1 {[%clk 00:01:47]}
{[%emt 00:01:00]} Kf8 {[%clk 00:00:58]} {[%emt 00:00:11]} 40. Ne6+ {[%clk
00:01:48]} {[%emt 00:00:29]} Ke7 {[%clk 00:00:36]} {[%emt 00:00:52]} 41. Nc5
{[%clk 00:01:35]} {[%emt 00:00:43]} Bc8 {[%clk 00:00:34]} {[%emt 00:00:32]} 42.
b4 {[%clk 00:00:38]} {[%emt 00:01:27]} cxb3 {[%clk 00:00:46]} {[%emt 00:00:18]}
43. axb3 {[%clk 00:01:06]} {[%emt 00:00:02]} Kd6 {[%clk 00:00:35]} {[%emt
00:00:40]} 44. Rxf7 {[%clk 00:01:17]} {[%emt 00:00:19]} Nd5 {[%clk 00:00:46]}
{[%emt 00:00:19]} 45. Ne4+ {[%clk 00:01:35]} {[%emt 00:00:12]} Ke6 {[%clk
00:01:13]} {[%emt 00:00:04]} 46. Rh7 {[%clk 00:01:49]} {[%emt 00:00:16]} Nf4
{[%clk 00:01:34]} {[%emt 00:00:09]} 47. Rd1 {[%clk 00:01:58]} {[%emt 00:00:20]}
Kf5 {[%clk 00:00:37]} {[%emt 00:01:28]} 48. Rxh6 {[%clk 00:02:10]} {[%emt
00:00:19]} 1-0

[Event "TOP 12 FEMININ 2022 - Phase 1"]
[Site "MULHOUSE, France"]
[Date "2022.04.07"]
[Round "1.5"]
[White "AUVRAY 608, Juliette"]
[Black "BEREND VAN, Elvira"]
[Result "0-1"]
[TimeControl "90 min +30 secondes par coup"]
[WhiteElo "1976"]
[BlackElo "2323"]

1. e4 {[%clk 01:30:57]} {[%emt 00:00:02]} c5 {[%clk 01:30:55]} {[%emt
00:00:06]} 2. Nf3 {[%clk 01:31:19]} {[%emt 00:00:07]} e6 {[%clk 01:31:15]}
{[%emt 00:00:11]} 3. d4 {[%clk 01:31:28]} {[%emt 00:00:21]} cxd4 {[%clk
01:31:37]} {[%emt 00:00:08]} 4. Nxd4 {[%clk 01:31:41]} {[%emt 00:00:16]} Nc6
{[%clk 01:31:57]} {[%emt 00:00:11]} 5. Nc3 {[%clk 01:31:31]} {[%emt 00:00:41]}
a6 {[%clk 01:32:16]} {[%emt 00:00:10]} 6. Be3 {[%clk 01:29:38]} {[%emt
00:02:23]} Nf6 {[%clk 01:30:47]} {[%emt 00:01:59]} 7. Be2 {[%clk 01:26:52]}
{[%emt 00:03:17]} d6 {[%clk 01:27:39]} {[%emt 00:03:37]} 8. Qd2 {[%clk
01:21:11]} {[%emt 00:06:10]} Qc7 {[%clk 01:17:23]} {[%emt 00:10:46]} 9. g4
{[%clk 01:06:00]} {[%emt 00:15:41]} Nxd4 {[%clk 01:10:20]} {[%emt 00:07:33]} 10.
Qxd4 {[%clk 01:04:36]} {[%emt 00:01:55]} b5 {[%clk 01:08:14]} {[%emt 00:02:36]}
11. g5 {[%clk 01:00:20]} {[%emt 00:04:46]} Nd7 {[%clk 01:08:27]} {[%emt
00:00:17]} 12. a3 {[%clk 00:45:40]} {[%emt 00:15:10]} Ne5 {[%clk 01:04:48]}
{[%emt 00:04:08]} 13. f4 {[%clk 00:37:45]} {[%emt 00:08:25]} Nc6 {[%clk
01:02:25]} {[%emt 00:02:53]} 14. Qd2 {[%clk 00:35:38]} {[%emt 00:02:37]} Rb8
{[%clk 01:01:36]} {[%emt 00:01:19]} 15. O-O {[%clk 00:24:30]} {[%emt 00:11:38]}
Bb7 {[%clk 01:00:01]} {[%emt 00:02:06]} 16. Rad1 {[%clk 00:19:54]} {[%emt
00:05:05]} Na5 {[%clk 00:52:55]} {[%emt 00:07:36]} 17. Qe1 {[%clk 00:16:33]}
{[%emt 00:03:50]} Nc4 {[%clk 00:51:10]} {[%emt 00:02:16]} 18. Bc1 {[%clk
00:13:57]} {[%emt 00:03:07]} Rc8 {[%clk 00:45:02]} {[%emt 00:06:37]} 19. Rd3
{[%clk 00:10:56]} {[%emt 00:03:31]} Qb6+ {[%clk 00:38:59]} {[%emt 00:06:33]} 20.
Kg2 {[%clk 00:07:50]} {[%emt 00:03:36]} Qc5 {[%clk 00:36:58]} {[%emt 00:02:31]}
21. Bf3 {[%clk 00:05:37]} {[%emt 00:02:43]} Be7 {[%clk 00:36:06]} {[%emt
00:01:22]} 22. h4 {[%clk 00:02:57]} {[%emt 00:03:11]} a5 {[%clk 00:28:42]}
{[%emt 00:07:54]} 23. b3 {[%clk 00:01:41]} {[%emt 00:01:46]} Nxa3 {[%clk
00:28:43]} {[%emt 00:00:28]} 24. Rf2 {[%clk 00:00:38]} {[%emt 00:01:34]} b4
{[%clk 00:28:08]} {[%emt 00:01:04]} 25. Bxa3 {[%clk 00:00:43]} {[%emt
00:00:25]} bxa3 {[%clk 00:28:30]} {[%emt 00:00:09]} 26. Na4 {[%clk 00:00:35]}
{[%emt 00:00:38]} Qb4 {[%clk 00:28:34]} {[%emt 00:00:25]} 27. Qa1 {[%clk
00:00:33]} {[%emt 00:00:32]} O-O {[%clk 00:28:10]} {[%emt 00:00:55]} 28. Rd4
{[%clk 00:00:31]} {[%emt 00:00:31]} Qb5 {[%clk 00:28:09]} {[%emt 00:00:30]} 29.
Qxa3 {[%clk 00:00:33]} {[%emt 00:00:30]} e5 {[%clk 00:28:20]} {[%emt 00:00:19]}
30. Rdd2 {[%clk 00:00:32]} {[%emt 00:00:30]} exf4 {[%clk 00:27:48]} {[%emt
00:01:02]} 31. Qb2 {[%clk 00:00:35]} {[%emt 00:00:28]} f6 {[%clk 00:27:21]}
{[%emt 00:00:56]} 32. c4 {[%clk 00:00:33]} {[%emt 00:00:32]} Qb4 {[%clk
00:25:51]} {[%emt 00:02:00]} 33. g6 {[%clk 00:00:32]} {[%emt 00:00:32]} hxg6
{[%clk 00:26:06]} {[%emt 00:00:15]} 34. Qc2 {[%clk 00:00:34]} {[%emt 00:00:27]}
f5 {[%clk 00:25:44]} {[%emt 00:00:52]} 35. h5 {[%clk 00:00:34]} {[%emt
00:00:30]} fxe4 {[%clk 00:22:25]} {[%emt 00:03:50]} 36. Bxe4 {[%clk 00:00:58]}
{[%emt 00:00:06]} gxh5 {[%clk 00:22:48]} {[%emt 00:00:06]} 37. Bd5+ {[%clk
00:01:03]} {[%emt 00:00:26]} Bxd5+ {[%clk 00:22:27]} {[%emt 00:00:51]} 38. Rxd5
{[%clk 00:01:28]} {[%emt 00:00:05]} f3+ {[%clk 00:22:10]} {[%emt 00:00:47]} 39.
Kh2 {[%clk 00:00:35]} {[%emt 00:01:23]} Rf4 {[%clk 00:18:54]} {[%emt 00:03:45]}
40. Rxh5 {[%clk 00:00:37]} {[%emt 00:00:29]} Qe1 {[%clk 00:12:08]} {[%emt
00:07:15]} 41. Qh7+ {[%clk 00:00:32]} {[%emt 00:00:36]} Kf7 {[%clk 00:12:32]}
{[%emt 00:00:06]} 42. Rf5+ {[%clk 00:00:31]} {[%emt 00:00:31]} Bf6 {[%clk
00:12:37]} {[%emt 00:00:25]} 43. Kg3 {[%clk 00:00:36]} {[%emt 00:00:25]} Rh8
{[%clk 00:11:30]} {[%emt 00:01:37]} 44. Rxf6+ {[%clk 00:00:32]} {[%emt
00:00:34]} Rxf6 {[%clk 00:11:54]} {[%emt 00:00:05]} 45. Qxh8 {[%clk 00:00:42]}
{[%emt 00:00:20]} Qg1+ {[%clk 00:11:55]} {[%emt 00:00:29]} 0-1